Cogmind - Beta 13 @@@ ROGUE MODE // 2024.07.19 @ 23:40:48 Player: CONM Result: Destroyed by Y-72 Warden with Quantum Rifle Performance ------------- Evolutions (8) 4000 Regions Visited (21) 4200 Robots Destroyed (80) 400 Value Destroyed (2180) 2180 Prototype IDs (26) 520 Alien Tech Used (0) 0 Bonus (1300) 1300 TOTAL SCORE: 12600 Bonus ------- Entered DSFs 1000 Aligned with FarCom 300 Cogmind --------- Core Integrity 0/1450 Matter 4/300 Energy 86/100 System Corruption 1% Temperature Cool (11) Movement Hovering (60) Location -2/Research Parts ------- > --- POWER (2) -------- (None) > --- PROPULSION (6) --- Antigrav Array > --- UTILITY (11) ----- (None) > --- WEAPON (4) ------- (None) > --- INVENTORY (5) ---- Antigrav Array Quantum Rifle Peak State ------------ > --- POWER ------------ Improved Deuterium Engine > --- PROPULSION ------- Combat Airjet Combat Airjet Combat Airjet Combat Airjet Improved Antigrav System > --- UTILITY ---------- Large Storage Unit Advanced Targeting Computer Cloak of Protection System Shield > --- WEAPON ----------- Grenade Launcher > --- INVENTORY -------- Antimatter Reactor Gravmag Array Nanoactuators Tesla Rifle Heavy Missile Launcher [Rating: 50] Favorites ----------- Power Light Nuclear Core Engine Ion Engine Power Core Light Nuclear Core Reactor Antimatter Reactor Propulsion Light Treads Treads Light Treads Leg Flexi-carbon Leg Wheel Wheel Hover Unit Combat Airjet Flight Unit Cesium-ion Thruster Utility Large Storage Unit Device Structural Scanner Storage Large Storage Unit Processor Advanced Targeting Computer Hackware System Shield Protection Power Shielding Weapon Makeshift Axe Energy Gun Gatling Laser Energy Cannon Light EM Pulse Cannon Ballistic Gun Light Assault Rifle Ballistic Cannon Magnetic Acceleration Cannon Launcher Grenade Launcher Special Weapon Remote Datajack Slashing Weapon Makeshift Axe Build | -11 -10 -10 -9 -9 -9 -8 -8 -7 -7 -7 -6 -6 -6 -5 -5 -4 -4 -4 -3 -3 -2 ------- Run | Yrd Mat Min Mat Min Exi Min Mat Fac Low Low Fac Was Fac Fac DSF Fac Ext Cet Res DSF Res Slots Evolved 16 | . . . 2 . . . 2 2 . . 2 . . 2 . 2 . . 2 . 2 Power 1 | . . . . . . . . . . . 1 . . . . . . . . . . Propulsion 4 | . . . . . . . 2 1 . . . . . . . . . . 1 . . Utility 9 | . . . 2 . . . . 1 . . 1 . . 2 . 2 . . 1 . . Weapon 2 | . . . . . . . . . . . . . . . . . . . . . 2 Parts Attached 138 | 7 4 2 17 3 . 4 26 20 . 1 14 3 20 1 7 3 1 1 3 . 1 Power 12 | 1 1 . 2 . . . 1 . . . 1 1 3 . 1 . . . 1 . . Engine 9 | 1 1 . 1 . . . 1 . . . 1 . 3 . 1 . . . . . . Core 2 | . . . 1 . . . . . . . . 1 . . . . . . . . . Reactor 1 | . . . . . . . . . . . . . . . . . . . 1 . . Propulsion 44 | 2 2 . 2 . . 2 7 9 . 1 3 . 7 . 5 1 . 1 1 . 1 Treads 10 | 2 2 . 2 . . . 3 . . 1 . . . . . . . . . . . Leg 1 | . . . . . . . . . . . . . 1 . . . . . . . . Wheel 8 | . . . . . . 2 2 4 . . . . . . . . . . . . . Hover 15 | . . . . . . . . . . . 3 . 3 . 5 1 . 1 1 . 1 Flight 10 | . . . . . . . 2 5 . . . . 3 . . . . . . . . Utility 34 | 2 1 . 4 . . . 3 8 . . 4 2 6 . 1 1 1 . 1 . . Device 14 | 1 . . 1 . . . . 3 . . 3 1 4 . . 1 . . . . . Storage 4 | 1 1 . 1 . . . . . . . . . . . 1 . . . . . . Processor 3 | . . . . . . . 1 . . . . . 1 . . . 1 . . . . Hackware 4 | . . . . . . . . 1 . . . 1 1 . . . . . 1 . . Protection 9 | . . . 2 . . . 2 4 . . 1 . . . . . . . . . . Artifact . | . . . . . . . . . . . . . . . . . . . . . . Weapon 48 | 2 . 2 9 3 . 2 15 3 . . 6 . 4 1 . 1 . . . . . Energy Gun 5 | . . . . . . . . 1 . . 2 . 2 . . . . . . . . Energy Cannon 8 | . . . 4 . . . . . . . 3 . 1 . . . . . . . . Ballistic Gun 15 | 2 . 1 1 2 . 2 6 1 . . . . . . . . . . . . . Ballistic Cannon 1 | . . . . . . . . . . . . . . 1 . . . . . . . Launcher 9 | . . 1 2 1 . . 2 1 . . 1 . . . . 1 . . . . . Special Weapon 1 | . . . . . . . . . . . . . 1 . . . . . . . . Impact Weapon . | . . . . . . . . . . . . . . . . . . . . . . Slashing Weapon 9 | . . . 2 . . . 7 . . . . . . . . . . . . . . Piercing Weapon . | . . . . . . . . . . . . . . . . . . . . . . Special Melee Weapon . | . . . . . . . . . . . . . . . . . . . . . . Unidentified Prototypes 3 | . . . . . . . 1 . . . 1 . 1 . . . . . . . . Corrupted Parts 3 | . . . 1 . . . . . . . . 1 1 . . . . . . . . System Corruption 20 | . . . 8 . . . . . . . . 5 7 . . . . . . . . Parts Lost 53 | . 1 . 4 . . 2 6 12 . . 6 5 5 . 3 . 7 . . . 2 Power 4 | . . . 1 . . . 1 1 . . 1 . . . . . . . . . . Propulsion 20 | . 1 . . . . 2 2 4 . . 1 2 3 . . . 4 . . . 1 Utility 17 | . . . 2 . . . 2 5 . . . 3 1 . 1 . 2 . . . 1 Weapon 12 | . . . 1 . . . 1 2 . . 4 . 1 . 2 . 1 . . . . Highest Loss Streak 7 | . 1 . 2 . . 2 1 4 . . 2 2 3 . 3 . 7 . . . 2 To Critical Strikes . | . . . . . . . . . . . . . . . . . . . . . . Average Slot Usage (%) 58 | . 100 100 92 88 66 79 74 71 . 3 20 33 33 47 45 53 30 13 22 26 13 Engine 4 | . 14 14 10 . . . 1 2 . . 2 . 4 . . 5 2 . . . . Core 2 | . . . . 11 11 11 7 . . . . 1 . . . . . . . . . Treads 10 | . 28 28 22 22 22 8 8 3 . 3 4 . . . . . . . . . . Wheel 2 | . . . . . . 13 8 7 . . . . . . . . . . . . . Hover 1 | . . . . . . . . . . . 1 10 2 . 18 25 12 3 7 7 2 Flight 2 | . . . . . . . 1 15 . . . . 6 17 8 . . . . . . Device 6 | . 14 14 20 11 11 11 2 3 . . 3 15 2 10 1 4 2 . . . . Storage 6 | . 14 14 11 11 11 11 9 6 . . . . . . . 5 2 . . . . Processor 1 | . . . . . . . 1 . . . . . 1 5 5 5 5 10 9 9 7 Hackware 1 | . . . . . . . . 3 . . . . 5 5 5 5 2 . 1 4 2 Protection 6 | . . . 5 11 11 11 18 12 . . 4 2 . . . . . . . . . Ballistic Gun 6 | . 28 24 3 13 . 13 8 5 . . . . . . . . . . . . . Slashing Weapon 2 | . . . 8 . . . 6 6 . . . . . . . . . . . . . Naked Turns 379 | . . . . . . . . 24 264 27 . 4 43 . . . . . . . 17 Heaviest Build 48 | 12 19 21 35 33 33 33 48 45 . . 19 23 25 18 30 41 41 . 16 16 16 Greatest Support 60 | 40 40 40 40 40 40 40 60 20 3 28 28 18 20 16 48 60 60 20 32 32 26 Greatest Overweight (x) 10 | . . . . . . 1 3 10 . . 3 3 3 1 . . 1 . . . . Average Overweight (x) . | . . . . . . . 1 2 . . . . . . . . . . . . . Largest Inventory Capacity 15 | 8 10 10 15 15 15 15 15 15 5 5 5 5 5 5 15 15 15 5 5 5 5 Average Capacity 9 | 7 8 10 12 15 15 15 15 14 5 5 5 5 5 5 7 15 10 5 5 5 5 Most Carried 15 | 3 9 10 13 15 15 15 15 15 5 5 5 5 5 5 5 6 6 5 5 5 5 Average Carried 8 | 2 7 9 10 13 14 13 14 13 5 5 4 4 4 5 4 4 5 3 3 4 4 Final Capacity 15 | 8 10 10 15 15 15 15 15 5 5 5 5 5 5 5 15 15 5 5 5 5 5 Final Carried 15 | 3 9 10 11 15 15 12 13 5 5 5 4 5 5 5 3 6 5 3 5 5 3 Class Distribution -------------------- 89% | Mutant 7% | Scavenger-Mutant Dominant Class ---------------- Mutant | -10/Materials Mutant | -10/Mines Scavenger-Mutant | -9/Materials Mutant | -9/Mines Mutant | -9/Exiles Mutant | -8/Mines Mutant | -8/Materials Mutant | -7/Factory Mutant | -7/Lower Caves Mutant | -7/Lower Caves Mutant | -6/Factory Mutant | -6/Waste Mutant | -6/Factory Sprinter | -5/Factory Mutant | -5/DSF Mutant | -4/Factory Mutant | -4/Extension Mutant | -4/Cetus Mutant | -3/Research Mutant | -3/DSF Mutant | -2/Research Resources | -11 -10 -10 -9 -9 -9 -8 -8 -7 -7 -7 -6 -6 -6 -5 -5 -4 -4 -4 -3 -3 -2 ----------- Run | Yrd Mat Min Mat Min Exi Min Mat Fac Low Low Fac Was Fac Fac DSF Fac Ext Cet Res DSF Res Matter Collected 1873 | 298 222 107 257 33 . 41 287 185 28 21 138 . 244 . . . 12 . . . . Remotely . | . . . . . . . . . . . . . . . . . . . . . . Salvage Created 2339 | 27 423 125 554 . . . 488 269 . . 187 . 266 . . . . . . . . Parts 180 | 3 33 12 42 . . . 38 25 . . 10 . 17 . . . . . . . . Haulers Intercepted 4 | . 1 . . . . . 1 1 . . . . 1 . . . . . . . . Recyclers Shooed 3 | . 1 . . . . . . . . . . . 2 . . . . . . . . Parts Field Recycled 9 | . . . . . . . . 3 . . . . 6 . . . . . . . . Retrieved Matter 71 | . . . . . . . . 9 . . . . 62 . . . . . . . . Parts Self-Destructed . | . . . . . . . . . . . . . . . . . . . . . . Prevented . | . . . . . . . . . . . . . . . . . . . . . . Kills | -11 -10 -10 -9 -9 -9 -8 -8 -7 -7 -7 -6 -6 -6 -5 -5 -4 -4 -4 -3 -3 -2 ------- Run | Yrd Mat Min Mat Min Exi Min Mat Fac Low Low Fac Was Fac Fac DSF Fac Ext Cet Res DSF Res Combat Hostiles Destroyed 60 | . 13 8 13 . . . 14 4 . . 5 . 3 . . . . . . . . Melee 1 | . . . . . . . . 1 . . . . . . . . . . . . . Guns 28 | . 13 3 1 . . . 6 1 . . 3 . 1 . . . . . . . . Cannons 8 | . . . 7 . . . . . . . 1 . . . . . . . . . . AOE 21 | . . 5 5 . . . 8 2 . . . . 1 . . . . . . . . Classes Destroyed 12 | 1 3 . 3 . . . 4 . . . 1 . . . . . . . . . . Worker 5 | . . . 1 . . . 1 2 . . 1 . . . . . . . . . . Builder 5 | . . . . . . . 1 4 . . . . . . . . . . . . . Tunneler 3 | 1 . . 1 . . . . . . . . . 1 . . . . . . . . Hauler 4 | . 1 . . . . . 1 1 . . . . 1 . . . . . . . . Mechanic 1 | . . . . . . . 1 . . . . . . . . . . . . . . Operator 2 | . . . 2 . . . . . . . . . . . . . . . . . . Swarmer 20 | . 6 6 . . . . 4 3 . . . . 1 . . . . . . . . Grunt 28 | . 7 2 12 . . . 5 . . . 1 . 1 . . . . . . . . Duelist 1 | . . . . . . . 1 . . . . . . . . . . . . . . Sentry 5 | . . . 1 . . . 3 . . . 1 . . . . . . . . . . Hunter 2 | . . . . . . . 1 1 . . . . . . . . . . . . . Programmer 4 | . . . . . . . . . . . 3 . 1 . . . . . . . . Best Kill Streak 7 | 1 4 3 5 . . . 7 6 . . 2 . 1 . . . . . . . . Combat Bots Only 6 | . 4 3 5 . . . 6 3 . . 1 . 1 . . . . . . . . Max Kills in Single Turn 4 | 1 1 2 2 . . . 4 2 . . 2 . 1 . . . . . . . . Gunslinging . | . . . . . . . . . . . . . . . . . . . . . . Exploded 4 | . . 2 2 . . . 4 1 . . . . 1 . . . . . . . . Melee 1 | . . . . . . . . 1 . . . . . . . . . . . . . Uniques/NPCs Destroyed . | . . . . . . . . . . . . . . . . . . . . . . Combat | -11 -10 -10 -9 -9 -9 -8 -8 -7 -7 -7 -6 -6 -6 -5 -5 -4 -4 -4 -3 -3 -2 -------- Run | Yrd Mat Min Mat Min Exi Min Mat Fac Low Low Fac Was Fac Fac DSF Fac Ext Cet Res DSF Res Hostile Shots Fired 861 | . 70 18 57 . . 12 73 204 40 3 110 5 32 . 28 14 59 8 . 5 123 Missed 299 | . 22 8 11 . . 3 16 81 17 . 43 1 6 . 14 8 9 6 . 1 53 Damage Taken 10192 | . 541 119 668 . . 112 1089 1241 182 89 1094 208 587 . 630 116 1500 64 . 145 1807 Core 4408 | . 82 8 57 . . . 196 398 182 33 426 149 254 . 115 . 953 64 . 23 1468 Absorbed by Shields . | . . . . . . . . . . . . . . . . . . . . . . Redirected to Shielding 175 | . . . 3 . . . 29 20 . . 89 34 . . . . . . . . . Regen/Repaired (Parts) 68 | . 14 . . . . . 54 . . . . . . . . . . . . . . Core Remaining (%) 58 | 100 . 64 . . . 85 64 . . 12 . . 2 . 88 . . 11 . 98 . Volleys Fired 202 | 7 49 11 36 1 . 1 36 8 . . 18 . 35 . . . . . . . . Largest 2 | 2 2 2 2 2 . 2 2 1 . . 2 . 2 . . . . . . . . Hottest 154 | 40 40 50 112 46 . 46 66 80 . . 110 . 154 . . . . . . . . Shots Fired 319 | 14 98 23 50 2 . 2 64 8 . . 22 . 36 . . . . . . . . Gun 263 | 14 98 17 20 2 . 2 56 6 . . 17 . 31 . . . . . . . . Cannon 26 | . . . 23 . . . . . . . 1 . 2 . . . . . . . . Launcher 27 | . . 6 7 . . . 8 2 . . 4 . . . . . . . . . . Special 3 | . . . . . . . . . . . . . 3 . . . . . . . . Kinetic 209 | 14 98 17 20 2 . 2 56 . . . . . . . . . . . . . . Thermal 25 | . . . . . . . . 6 . . 18 . 1 . . . . . . . . Explosive 27 | . . 6 7 . . . 8 2 . . 4 . . . . . . . . . . Electromagnetic 55 | . . . 23 . . . . . . . . . 32 . . . . . . . . Robot Hit Streak 21 | 3 15 8 15 . . 1 6 8 . . 21 . 8 . . . . . . . . Robot Miss Streak 5 | 1 3 1 2 3 . 5 3 2 . . 3 . 2 . . . . . . . . Penetration Max . | . . . . . . . . . . . . . . . . . . . . . . Secondary Targets 2 | . 2 . . . . . . . . . . . . . . . . . . . . Max Gunslinging Chain 1 | . 1 . . . . . . . . . . . . . . . . . . . . Shots Hit Robots 225 | 9 72 10 39 . . 1 41 14 . . 17 . 22 . . . . . . . . Core Hits 146 | 2 29 16 30 . . . 32 12 . . 17 . 8 . . . . . . . . Critical Kills . | . . . . . . . . . . . . . . . . . . . . . . Critical Parts Destroyed 1 | . . . . . . . 1 . . . . . . . . . . . . . . Critical Strikes 3 | . . . 1 . . . 2 . . . . . . . . . . . . . . Destroy 1 | . . . . . . . 1 . . . . . . . . . . . . . . Corrupt 1 | . . . 1 . . . . . . . . . . . . . . . . . . Sever 1 | . . . . . . . 1 . . . . . . . . . . . . . . Melee Attacks 59 | . . . 7 . . . 41 11 . . . . . . . . . . . . . Impact . | . . . . . . . . . . . . . . . . . . . . . . Slashing 59 | . . . 7 . . . 41 11 . . . . . . . . . . . . . Piercing . | . . . . . . . . . . . . . . . . . . . . . . Sneak Attacks 13 | . . . 3 . . . 3 7 . . . . . . . . . . . . . Combat Hostiles . | . . . . . . . . . . . . . . . . . . . . . . Follow-up Attacks . | . . . . . . . . . . . . . . . . . . . . . . Damage Inflicted 5867 | 89 703 368 1291 . . 9 1407 907 . . 636 14 443 . . . . . . . . Guns 2487 | 89 703 97 113 . . 9 483 160 . . 501 . 332 . . . . . . . . Cannons 529 | . . . 439 . . . . . . . 32 . 58 . . . . . . . . Explosions 1596 | . . 271 419 . . . 588 182 . . 85 . 51 . . . . . . . . Melee 1214 | . . . 313 . . . 336 565 . . . . . . . . . . . . . Ramming 41 | . . . 7 . . . . . . . 18 14 2 . . . . . . . . Kinetic 1494 | 89 703 97 113 . . 9 483 . . . . . . . . . . . . . . Thermal 744 | . . . . . . . . 160 . . 533 . 51 . . . . . . . . Explosive 1545 | . . 271 419 . . . 588 182 . . 85 . . . . . . . . . . Electromagnetic 829 | . . . 439 . . . . . . . . . 390 . . . . . . . . Impact . | . . . . . . . . . . . . . . . . . . . . . . Slashing 1214 | . . . 313 . . . 336 565 . . . . . . . . . . . . . Piercing . | . . . . . . . . . . . . . . . . . . . . . . Highest Corruption 15 | . 2 2 8 8 8 8 . . . . 2 7 15 . . . . . . . 1 Average Corruption 5 | . 2 2 8 8 8 8 . . . . 1 2 11 . . . . . . . 1 Corruption Purged . | . . . . . . . . . . . . . . . . . . . . . . Corruption Blocked . | . . . . . . . . . . . . . . . . . . . . . . Effects 69 | . 2 5 1 10 8 2 . . . . 7 2 32 . . . . . . . . Message Errors 18 | . 1 1 . 3 3 1 . . . . 3 . 6 . . . . . . . . Matter Fused 21 | . 1 1 . 2 2 . . . . . 2 . 13 . . . . . . . . Heat Flow Errors 6 | . . . 1 2 . 1 . . . . . . 2 . . . . . . . . Energy Discharges 8 | . . 1 . . . . . . . . 1 1 5 . . . . . . . . Data Loss (minor) 7 | . . . . 1 2 . . . . . 1 . 3 . . . . . . . . Data Loss (major) 3 | . . 1 . 2 . . . . . . . . . . . . . . . . . Misfires 2 | . . 1 . . . . . . . . . . 1 . . . . . . . . Alerts 2 | . . . . . 1 . . . . . . 1 . . . . . . . . . Misdirections 1 | . . . . . . . . . . . . . 1 . . . . . . . . Weapon Failures 1 | . . . . . . . . . . . . . 1 . . . . . . . . Overload Shots . | . . . . . . . . . . . . . . . . . . . . . . Overflow Damage 418 | . . 5 199 . . . 73 117 . . . . 24 . . . . . . . . Projectiles . | . . . . . . . . . . . . . . . . . . . . . . Explosions 48 | . . 5 . . . . 19 . . . . . 24 . . . . . . . . Melee 370 | . . . 199 . . . 54 117 . . . . . . . . . . . . . Knockbacks . | . . . . . . . . . . . . . . . . . . . . . . Impact . | . . . . . . . . . . . . . . . . . . . . . . Kinetic . | . . . . . . . . . . . . . . . . . . . . . . Secondary . | . . . . . . . . . . . . . . . . . . . . . . Self-Inflicted Damage 201 | . . 23 91 . . . 4 7 . . 8 7 61 . . . . . . . . Shots 8 | . . 1 4 . . . 1 1 . . . . 1 . . . . . . . . Rammed 7 | . . . 2 . . . . . . . 2 2 1 . . . . . . . . Targets Rammed 7 | . . . 2 . . . . . . . 2 2 1 . . . . . . . . Kicked . | . . . . . . . . . . . . . . . . . . . . . . Crushed . | . . . . . . . . . . . . . . . . . . . . . . Highest Temperature 980 | . 32 9 145 195 . 128 22 36 . . 122 . 198 . . . 980 . . . . Average Temperature 74 | . 10 8 50 77 . 51 4 19 . . 46 . 35 . . . 534 . . . . Received Heat Transfer 2546 | . 288 15 315 . . . 135 138 48 12 111 . 108 . . . 1241 9 . . 126 Effects 8 | . . . . . . . . . . . . . . . . . 8 . . . . Shutdowns 1 | . . . . . . . . . . . . . . . . . 1 . . . . Energy Bleed 2 | . . . . . . . . . . . . . . . . . 2 . . . . Interference 1 | . . . . . . . . . . . . . . . . . 1 . . . . Short Circuit 2 | . . . . . . . . . . . . . . . . . 2 . . . . Damage (major) 2 | . . . . . . . . . . . . . . . . . 2 . . . . Siege Activations . | . . . . . . . . . . . . . . . . . . . . . . Robots Corrupted 1 | . . . . . . . . . . . . . 1 . . . . . . . . Combat Hostiles 1 | . . . . . . . . . . . . . 1 . . . . . . . . Parts Fried 1 | . . . 1 . . . . . . . . . . . . . . . . . . Impact Corruptions . | . . . . . . . . . . . . . . . . . . . . . . Robots Melted 1 | . . . . . . . . . . . 1 . . . . . . . . . . Combat Hostiles 1 | . . . . . . . . . . . 1 . . . . . . . . . . Parts Melted 1 | . . . . . . . . . . . 1 . . . . . . . . . . Heat Transferred 1450 | . . . . . . . . 350 . . 1050 . 50 . . . . . . . . Parts Sabotaged . | . . . . . . . . . . . . . . . . . . . . . . Parts Stolen . | . . . . . . . . . . . . . . . . . . . . . . Parts Stripped . | . . . . . . . . . . . . . . . . . . . . . . Power Chain Reactions 1 | . . . . . . . . . . . . . 1 . . . . . . . . Alert | -11 -10 -10 -9 -9 -9 -8 -8 -7 -7 -7 -6 -6 -6 -5 -5 -4 -4 -4 -3 -3 -2 ------- Run | Yrd Mat Min Mat Min Exi Min Mat Fac Low Low Fac Was Fac Fac DSF Fac Ext Cet Res DSF Res Peak Influence 314 | 5 280 270 314 99 . . 309 215 . . 154 67 107 64 44 29 14 . 12 9 60 Initial 99 | . 3 50 27 99 . . . 95 . . 14 47 39 49 44 14 14 . . 9 4 Average 73 | . 136 123 138 99 . . 83 79 . . 40 51 57 60 24 14 6 . 11 9 15 Maximum Alert Level 1 | . 1 1 1 . . . 1 1 . . . . . . . . . . . . . Low Security (%) 89 | 100 74 66 86 100 . 100 85 78 . . 100 100 100 100 100 100 100 100 100 100 100 Level 1 10 | . 25 33 13 . . . 14 21 . . . . . . . . . . . . . Level 2 . | . . . . . . . . . . . . . . . . . . . . . . Level 3 . | . . . . . . . . . . . . . . . . . . . . . . Level 4 . | . . . . . . . . . . . . . . . . . . . . . . Level 5 . | . . . . . . . . . . . . . . . . . . . . . . High Security . | . . . . . . . . . . . . . . . . . . . . . . Max Security . | . . . . . . . . . . . . . . . . . . . . . . Squads Dispatched 19 | . 3 . 3 . . . 3 2 . . 3 . 1 1 . 1 . . . 1 1 Investigation 3 | . 1 . . . . . . . . . . . . 1 . 1 . . . . . Extermination 5 | . . . . . . . . 1 . . 3 . 1 . . . . . . . . Reinforcement 11 | . 2 . 3 . . . 3 1 . . . . . . . . . . . 1 1 Assault . | . . . . . . . . . . . . . . . . . . . . . . Garrison . | . . . . . . . . . . . . . . . . . . . . . . Intercept . | . . . . . . . . . . . . . . . . . . . . . . Searches Triggered . | . . . . . . . . . . . . . . . . . . . . . . Construction Impeded 1 | . . . . . . . . 1 . . . . . . . . . . . . . Haulers Reinforced . | . . . . . . . . . . . . . . . . . . . . . . Active Scanning Responses . | . . . . . . . . . . . . . . . . . . . . . . Cargo Convoy Interrupts . | . . . . . . . . . . . . . . . . . . . . . . Stealth | -11 -10 -10 -9 -9 -9 -8 -8 -7 -7 -7 -6 -6 -6 -5 -5 -4 -4 -4 -3 -3 -2 --------- Run | Yrd Mat Min Mat Min Exi Min Mat Fac Low Low Fac Was Fac Fac DSF Fac Ext Cet Res DSF Res Distress Signals 11 | . 4 . 2 . . . 1 . . . 1 . . . . . 1 1 . . 1 Communications Jammed . | . . . . . . . . . . . . . . . . . . . . . . Distress Signals . | . . . . . . . . . . . . . . . . . . . . . . Times Spotted 151 | . 23 8 20 . . 1 23 8 4 1 17 6 6 . 2 2 6 4 . 5 15 Peak Tracking Total 14 | . 6 3 6 . . 1 5 4 2 1 6 6 3 . 2 2 6 5 . 5 14 Tactical Retreats 12 | . 1 . . . . . 2 . 1 . 1 1 3 . 1 1 . . . . 1 Traps | -11 -10 -10 -9 -9 -9 -8 -8 -7 -7 -7 -6 -6 -6 -5 -5 -4 -4 -4 -3 -3 -2 ------- Run | Yrd Mat Min Mat Min Exi Min Mat Fac Low Low Fac Was Fac Fac DSF Fac Ext Cet Res DSF Res Traps Triggered 8 | . 2 . . . . . . 2 . . 2 . 1 . 1 . . . . . . Indirectly . | . . . . . . . . . . . . . . . . . . . . . . Trap Hack Attempts . | . . . . . . . . . . . . . . . . . . . . . . Triggered . | . . . . . . . . . . . . . . . . . . . . . . Disarmed . | . . . . . . . . . . . . . . . . . . . . . . Reprogrammed . | . . . . . . . . . . . . . . . . . . . . . . Reused . | . . . . . . . . . . . . . . . . . . . . . . Traps Extracted . | . . . . . . . . . . . . . . . . . . . . . . Installed . | . . . . . . . . . . . . . . . . . . . . . . Triggered 1 | . . . . . . . . . . . . . 1 . . . . . . . . Machines | -11 -10 -10 -9 -9 -9 -8 -8 -7 -7 -7 -6 -6 -6 -5 -5 -4 -4 -4 -3 -3 -2 ---------- Run | Yrd Mat Min Mat Min Exi Min Mat Fac Low Low Fac Was Fac Fac DSF Fac Ext Cet Res DSF Res Machines Disabled 5 | . . . 1 . . . . 1 . . 1 . 2 . . . . . . . . Max in Single Turn 2 | . . . 1 . . . . 1 . . 1 . 2 . . . . . . . . Machines Repaired . | . . . . . . . . . . . . . . . . . . . . . . Machines Dismantled . | . . . . . . . . . . . . . . . . . . . . . . Machines Sabotaged . | . . . . . . . . . . . . . . . . . . . . . . Overloaded Fab Kills . | . . . . . . . . . . . . . . . . . . . . . . Hacking | -11 -10 -10 -9 -9 -9 -8 -8 -7 -7 -7 -6 -6 -6 -5 -5 -4 -4 -4 -3 -3 -2 --------- Run | Yrd Mat Min Mat Min Exi Min Mat Fac Low Low Fac Was Fac Fac DSF Fac Ext Cet Res DSF Res Machines Accessed 27 | . 5 . 4 . 1 . 3 2 1 . 4 . 1 1 . 2 . . 3 . . Terminals 15 | . 4 . 3 . . . 2 1 . . 2 . . 1 . 1 . . 1 . . Fabricators 1 | . . . . . . . . . . . . . . . . 1 . . . . . Repair Stations 3 | . 1 . . . . . 1 . . . . . . . . . . . 1 . . Recycling Units 3 | . . . . . . . . . . . 1 . 1 . . . . . 1 . . Scanalyzers 2 | . . . 1 . . . . . . . 1 . . . . . . . . . . Garrison Access 1 | . . . . . . . . 1 . . . . . . . . . . . . . Total Hacks 73 | . 13 . 13 . 1 . 17 6 1 . 7 . 3 3 . 4 . . 5 . . Successful 38 | . 7 . 10 . 1 . 10 1 1 . 1 . 1 1 . 2 . . 3 . . Failed 35 | . 6 . 3 . . . 7 5 . . 6 . 2 2 . 2 . . 2 . . Catastrophic 5 | . 1 . . . . . . . . . 1 . . . . 2 . . 1 . . Database Lockouts . | . . . . . . . . . . . . . . . . . . . . . . Manual 26 | . 7 . 4 . 1 . 9 1 . . 4 . . . . . . . . . . Terminals 40 | . 10 . 6 . . . 12 3 . . 4 . . 3 . 1 . . 1 . . Fabricators 3 | . . . . . . . . . . . . . . . . 3 . . . . . Repair Stations 10 | . 3 . . . . . 5 . . . . . . . . . . . 2 . . Recycling Units 6 | . . . . . . . . . . . 1 . 3 . . . . . 2 . . Scanalyzers 9 | . . . 7 . . . . . . . 2 . . . . . . . . . . Garrison Access 3 | . . . . . . . . 3 . . . . . . . . . . . . . Terminal Hacks 10 | . 2 . 2 . 1 . 1 1 1 . . . . 1 . . . . 1 . . Open Door 1 | . . . . . . . . . 1 . . . . . . . . . . . . Open DSF 2 | . . . . . . . . . . . . . . 1 . . . . 1 . . Terminal Index 3 | . 1 . 1 . . . . 1 . . . . . . . . . . . . . Scanalyzer Index 1 | . . . 1 . . . . . . . . . . . . . . . . . . Locate Traps 1 | . 1 . . . . . . . . . . . . . . . . . . . . Registered Prototypes 1 | . . . . . . . 1 . . . . . . . . . . . . . . Derelict Proto ID Bank 1 | . . . . . 1 . . . . . . . . . . . . . . . . Fabricator Hacks 2 | . . . . . . . . . . . . . . . . 2 . . . . . Load Schematic 1 | . . . . . . . . . . . . . . . . 1 . . . . . Build 1 | . . . . . . . . . . . . . . . . 1 . . . . . Repair Station Hacks 7 | . 2 . . . . . 4 . . . . . . . . . . . 1 . . Scan Component 4 | . 1 . . . . . 2 . . . . . . . . . . . 1 . . Repair 3 | . 1 . . . . . 2 . . . . . . . . . . . . . . Recycling Unit Hacks 2 | . . . . . . . . . . . . . 1 . . . . . 1 . . Report Inventory 2 | . . . . . . . . . . . . . 1 . . . . . 1 . . Scanalyzer 7 | . . . 7 . . . . . . . . . . . . . . . . . . Insert Component 3 | . . . 3 . . . . . . . . . . . . . . . . . . Analyze 4 | . . . 4 . . . . . . . . . . . . . . . . . . Garrison Access Hacks . | . . . . . . . . . . . . . . . . . . . . . . Unauthorized Hacks 10 | . 3 . 1 . . . 5 . . . 1 . . . . . . . . . . Terminals 9 | . 3 . 1 . . . 5 . . . . . . . . . . . . . . Track 2 | . 1 . . . . . 1 . . . . . . . . . . . . . . Assimilate 1 | . . . . . . . 1 . . . . . . . . . . . . . . Botnet 4 | . 2 . 1 . . . 1 . . . . . . . . . . . . . . Operators 2 | . . . . . . . 2 . . . . . . . . . . . . . . Fabricators . | . . . . . . . . . . . . . . . . . . . . . . Repair Stations . | . . . . . . . . . . . . . . . . . . . . . . Recycling Units . | . . . . . . . . . . . . . . . . . . . . . . Scanalyzers 1 | . . . . . . . . . . . 1 . . . . . . . . . . Researchers 1 | . . . . . . . . . . . 1 . . . . . . . . . . Garrison Access . | . . . . . . . . . . . . . . . . . . . . . . Data Cores Recovered . | . . . . . . . . . . . . . . . . . . . . . . Used . | . . . . . . . . . . . . . . . . . . . . . . Hacking Detections 22 | . 4 . 4 . . . 3 2 . . 3 . 1 1 . 2 . . 2 . . Full Trace Events 3 | . . . . . . . 1 . . . . . . 1 . 1 . . . . . Feedback Events . | . . . . . . . . . . . . . . . . . . . . . . Feedback Blocked . | . . . . . . . . . . . . . . . . . . . . . . Robot Schematics Acquired . | . . . . . . . . . . . . . . . . . . . . . . Robots Built . | . . . . . . . . . . . . . . . . . . . . . . Authchips . | . . . . . . . . . . . . . . . . . . . . . . Time . | . . . . . . . . . . . . . . . . . . . . . . Total Robot Build Rating . | . . . . . . . . . . . . . . . . . . . . . . Part Schematics Acquired 3 | . . . 3 . . . . . . . . . . . . . . . . . . Parts Built 1 | . . . . . . . . . . . . . . . . 1 . . . . . Authchips . | . . . . . . . . . . . . . . . . . . . . . . Time 25 | . . . . . . . . . . . . . . . . 25 . . . . . Total Part Build Rating 1 | . . . . . . . . . . . . . . . . 1 . . . . . Parts Repaired 3 | . 1 . . . . . 2 . . . . . . . . . . . . . . Time 90 | . 26 . . . . . 64 . . . . . . . . . . . . . . Parts Recycled . | . . . . . . . . . . . . . . . . . . . . . . Recycled Matter . | . . . . . . . . . . . . . . . . . . . . . . Retrieved Matter . | . . . . . . . . . . . . . . . . . . . . . . Retrieved Components . | . . . . . . . . . . . . . . . . . . . . . . Parts Scanalyzed 3 | . . . 3 . . . . . . . . . . . . . . . . . . Part Schematics Acquired 3 | . . . 3 . . . . . . . . . . . . . . . . . . Parts Damaged 1 | . . . 1 . . . . . . . . . . . . . . . . . . Bothacking | -11 -10 -10 -9 -9 -9 -8 -8 -7 -7 -7 -6 -6 -6 -5 -5 -4 -4 -4 -3 -3 -2 ------------ Run | Yrd Mat Min Mat Min Exi Min Mat Fac Low Low Fac Was Fac Fac DSF Fac Ext Cet Res DSF Res Used RIF Installer . | . . . . . . . . . . . . . . . . . . . . . . Robots Hacked 2 | . . . . . . . . . . . . . 2 . . . . . . . . Non-combat 2 | . . . . . . . . . . . . . 2 . . . . . . . . Combat . | . . . . . . . . . . . . . . . . . . . . . . Robot Hacks Applied 3 | . . . . . . . . . . . . . 3 . . . . . . . . parse_system 1 | . . . . . . . . . . . . . 1 . . . . . . . . no_distress 1 | . . . . . . . . . . . . . 1 . . . . . . . . find_recycling 1 | . . . . . . . . . . . . . 1 . . . . . . . . Relay Couplers Released . | . . . . . . . . . . . . . . . . . . . . . . Fabnet Peak Effective % . | . . . . . . . . . . . . . . . . . . . . . . Robots Rewired . | . . . . . . . . . . . . . . . . . . . . . . Allies Hacked . | . . . . . . . . . . . . . . . . . . . . . . Hacks Repelled . | . . . . . . . . . . . . . . . . . . . . . . Allies | -11 -10 -10 -9 -9 -9 -8 -8 -7 -7 -7 -6 -6 -6 -5 -5 -4 -4 -4 -3 -3 -2 -------- Run | Yrd Mat Min Mat Min Exi Min Mat Fac Low Low Fac Was Fac Fac DSF Fac Ext Cet Res DSF Res Total Allies 1 | . . . . 1 . . . . . . . . . . . . . . . . . Largest Group 1 | . . . . 1 1 . . . . . . . . . . . . . . . . Highest-Rated Group 31 | . . . . 31 31 . . . . . . . . . . . . . . . . Highest-Rated Ally 31 | . . . . 31 31 . . . . . . . . . . . . . . . . Total Orders 1 | . . . . . . . . . . . . . 1 . . . . . . . . EXPLORE 1 | . . . . . . . . . . . . . 1 . . . . . . . . Ally Attacks . | . . . . . . . . . . . . . . . . . . . . . . Total Damage . | . . . . . . . . . . . . . . . . . . . . . . Kills . | . . . . . . . . . . . . . . . . . . . . . . Allies Corrupted . | . . . . . . . . . . . . . . . . . . . . . . Allies Melted . | . . . . . . . . . . . . . . . . . . . . . . Intel | -11 -10 -10 -9 -9 -9 -8 -8 -7 -7 -7 -6 -6 -6 -5 -5 -4 -4 -4 -3 -3 -2 ------- Run | Yrd Mat Min Mat Min Exi Min Mat Fac Low Low Fac Was Fac Fac DSF Fac Ext Cet Res DSF Res Robot Analysis Total . | . . . . . . . . . . . . . . . . . . . . . . Derelict Logs Recovered 2 | . . 1 . . . . . . 1 . . . . . . . . . . . . Drone Launches 1 | . . . . . . . . . . . . . 1 . . . . . . . . Drone Recoveries . | . . . . . . . . . . . . . . . . . . . . . . Exploration | -11 -10 -10 -9 -9 -9 -8 -8 -7 -7 -7 -6 -6 -6 -5 -5 -4 -4 -4 -3 -3 -2 ------------- Run | Yrd Mat Min Mat Min Exi Min Mat Fac Low Low Fac Was Fac Fac DSF Fac Ext Cet Res DSF Res Turns Passed 8664 | 245 865 411 563 339 348 133 1398 858 264 57 1402 161 767 77 67 185 123 32 177 30 162 Spaces Moved 7161 | 126 420 235 262 205 216 109 718 659 528 71 919 216 1074 210 66 262 212 55 294 50 254 Core 1201 | 7 . . . . . . . 61 528 52 60 83 144 . . . 115 22 . . 129 Treads 2324 | 119 420 235 262 205 216 32 199 . . 19 617 . . . . . . . . . . Legs 82 | . . . . . . . . . . . . . 82 . . . . . . . . Wheels 1188 | . . . . . . 77 519 592 . . . . . . . . . . . . . Hover 1504 | . . . . . . . . . . . 242 133 221 . 47 262 97 33 294 50 125 Flight 862 | . . . . . . . . 6 . . . . 627 210 19 . . . . . . Fastest Speed 32 | 50 160 160 160 160 160 95 95 50 50 50 52 50 32 32 32 63 50 50 56 56 50 Average Speed 101 | 153 160 160 160 160 160 114 138 117 50 79 132 70 52 35 63 64 56 56 56 56 54 Slowest Speed 550 | 160 160 160 160 160 160 240 320 550 50 160 200 200 200 107 80 74 150 60 60 60 60 Overloaded Moves . | . . . . . . . . . . . . . . . . . . . . . . Propulsion Burnouts . | . . . . . . . . . . . . . . . . . . . . . . Robots Hopped 1 | . . . . . . . . . . . . . 1 . . . . . . . . Cave-ins Triggered . | . . . . . . . . . . . . . . . . . . . . . . Exploration Rate (%) 33 | 6 61 59 30 45 61 28 46 14 58 15 19 83 17 4 50 6 44 23 8 44 12 Regions Visited 21 Branch Regions 8 Pre-discovered Areas 1 | . . . . . . . . . 1 . . . . . . . . . . . . Known Exits Taken 4 | . . . . . . . . . . . . . . 1 . . 1 1 1 . . Unknown Exits Taken 13 | 1 1 1 1 1 1 1 1 1 1 1 . . 1 . . 1 . . . . . Scrap Searched 5 | . . . . 2 . 1 . . 1 1 . . . . . . . . . . . Spaces Dug 47 | . . 11 1 . . . 33 2 . . . . . . . . . . . . . Terrain Destroyed 205 | . . 36 33 . . . 97 15 . . 17 . 7 . . . . . . . . Melee 36 | . . . 1 . . . 33 2 . . . . . . . . . . . . . Projectile . | . . . . . . . . . . . . . . . . . . . . . . AOE 169 | . . 36 32 . . . 64 13 . . 17 . 7 . . . . . . . . Terrain Rammed . | . . . . . . . . . . . . . . . . . . . . . . Walls Destroyed . | . . . . . . . . . . . . . . . . . . . . . . Machines Disabled . | . . . . . . . . . . . . . . . . . . . . . . Actions | -11 -10 -10 -9 -9 -9 -8 -8 -7 -7 -7 -6 -6 -6 -5 -5 -4 -4 -4 -3 -3 -2 --------- Run | Yrd Mat Min Mat Min Exi Min Mat Fac Low Low Fac Was Fac Fac DSF Fac Ext Cet Res DSF Res Total 8169 | 161 525 248 349 213 221 114 1015 719 527 71 1072 221 1230 212 90 278 215 55 303 52 278 Wait 500 | 19 44 . 13 . . . 178 . . . 114 . 90 . 14 9 . . . . 19 Move 7139 | 125 419 234 261 204 215 108 717 658 527 70 919 215 1071 209 65 261 211 54 293 49 254 Hop 1 | . . . . . . . . . . . . . 1 . . . . . . . . Pick Up 59 | 3 7 1 6 4 1 1 9 5 . . 4 1 5 . 1 4 . . 5 1 1 Fast Attach 69 | 7 . . 3 . . . 9 11 . 1 8 3 17 1 5 1 1 . 2 . . Attach 33 | . 1 . 4 . . 4 4 4 . . 6 . 3 . 2 2 . 1 1 . 1 Detach 8 | . . . 1 . 2 . 1 3 . . 1 . . . . . . . . . . Swap 36 | . 3 2 10 3 . . 13 5 . . . . . . . . . . . . . Drop 47 | . 2 . 6 . 3 . 7 6 . . . . 7 2 3 1 3 . 2 2 3 Fire 202 | 7 49 11 36 1 . 1 36 8 . . 18 . 35 . . . . . . . . Melee 59 | . . . 7 . . . 41 11 . . . . . . . . . . . . . Ram 5 | . . . . . . . . . . . 2 2 1 . . . . . . . . Kick . | . . . . . . . . . . . . . . . . . . . . . . Crush 2 | . . . 2 . . . . . . . . . . . . . . . . . . Escape Stasis 8 | . . . . . . . . 8 . . . . . . . . . . . . . Rewire 1 | . . . . 1 . . . . . . . . . . . . . . . . . Trap . | . . . . . . . . . . . . . . . . . . . . . . Miscellaneous . | . . . . . . . . . . . . . . . . . . . . . . Route ------- -11/Scrapyard -10/Materials (discovered 2 exits: *Mat / [*Min]) -10/Mines -9/Materials -9/Mines (discovered 2 exits: *Mat / *Exi) -9/Exiles -8/Mines -8/Materials (discovered 3 exits: *Fac / [*Sto x2]) -7/Factory -7/Lower Caves -7/Lower Caves -6/Factory -6/Waste -6/Factory -5/Factory -5/DSF -4/Factory -4/Extension (discovered 2 exits: *Res / *Cet) -4/Cetus -3/Research -3/DSF -2/Research History --------- Turn | Location | Event 49 | -11/Scrapyard | Discovered new exit (range 15) 246 | -11/Scrapyard | Entered Materials 304 | -10/Materials | Build established: Mutant 532 | -10/Materials | Repaired Lgt. Treads 854 | -10/Materials | Discovered new exit (range 11) 1094 | -10/Materials | Discovered new exit (range 5) 1111 | -10/Materials | Entered Mines 1359 | -10/Mines | A weapon hastily lodged in a ceiling crevice suddenly fell to the ground 1394 | -10/Mines | Discovered new exit (range 3) 1439 | -10/Mines | Learned Materials emergency access door positions 1522 | -10/Mines | Entered Materials 1522 | -9/Materials | Evolved 2 slots: Utility x2 1916 | -9/Materials | Discovered new exit (range 12) 2085 | -9/Materials | Entered Mines 2108 | -9/Mines | Discovered new exit (range 12) 2336 | -9/Mines | Assembled infested the area 2392 | -9/Mines | Received a Mining Laser from a helpful Derelict 2416 | -9/Mines | Deemed a non-threat by the Exiles lab entrance 2416 | -9/Mines | Discovered new exit (range 6) 2424 | -9/Mines | Entered Exiles 2424 | -9/Exiles | Accompanied by 1 ally 2463 | -9/Exiles | Met 8R-AWN 2495 | -9/Exiles | Met EX-HEX 2538 | -9/Exiles | Met EX-BIN 2562 | -9/Exiles | Aligned with FarCom system 2564 | -9/Exiles | Given EX-Vault access code 2604 | -9/Exiles | Opened EX-Vault 2614 | -9/Exiles | Found Cloak of Protection 2647 | -9/Exiles | Warned to stay clear of 0b10 Research branches 2695 | -9/Exiles | Met EX-DEC 2758 | -9/Exiles | Discovered new exit (range 10) 2772 | -9/Exiles | Left Exiles lab with Cloak of Protection 2772 | -9/Exiles | Entered Mines 2894 | -8/Mines | Discovered new exit (range 11) 2905 | -8/Mines | Entered Materials 2905 | -8/Materials | Evolved 2 slots: Propulsion x2 3120 | -8/Materials | Discovered new exit (range 11) 4054 | -8/Materials | Discovered new exit (range 16) 4214 | -8/Materials | Repaired Cesium-ion Thruster 4241 | -8/Materials | Repaired Wheel 4282 | -8/Materials | Discovered new exit (range 5) 4303 | -8/Materials | Entered Factory 4303 | -7/Factory | Evolved 2 slots: Propulsion x1, Utility x1 4593 | -7/Factory | Lost 4 parts (1p1n2u) 4949 | -7/Factory | Discovered new exit (range 7) 5114 | -7/Factory | Lost 3 parts (2n1w) 5137 | -7/Factory | Released all parts (2) 5140 | -7/Factory | Core integrity fell below 50% 5156 | -7/Factory | Lost 4 parts (3u1w) 5161 | -7/Factory | Entered Lower Caves 5242 | -7/Lower Caves | Encountered a Warlord checkpoint 5414 | -7/Lower Caves | Attracted the attention of an 0b10 checkpoint 5418 | -7/Lower Caves | Discovered new exit (range 7) 5422 | -7/Lower Caves | Learned location of Extension (-4) 5424 | -7/Lower Caves | Core integrity fell below 20% 5425 | -7/Lower Caves | Entered another Lower Caves area 5449 | -7/Lower Caves | Discovered new exit (range 12) 5459 | -7/Lower Caves | Spotted B-75 Beast 5482 | -7/Lower Caves | Entered Factory 5482 | -6/Factory | Evolved 2 slots: Power x1, Utility x1 6864 | -6/Factory | Core integrity fell below 50% 6884 | -6/Factory | Sucked down chute 6884 | -6/Factory | Entered Waste 6894 | -6/Waste | Spotted C-40 Crusher 6930 | -6/Waste | Spotted C-40 Crusher 6941 | -6/Waste | Crushed by Compactor (1 part destroyed, 2 dropped) 6953 | -6/Waste | Spotted C-40 Crusher 6976 | -6/Waste | Crushed by Compactor (1 part destroyed, 1 dropped) 6981 | -6/Waste | Spotted C-40 Crusher 6984 | -6/Waste | Spotted C-40 Crusher 6989 | -6/Waste | Crushed by Compactor (1 part destroyed, 1 dropped) 6990 | -6/Waste | Spotted C-40 Crusher 7008 | -6/Waste | Discovered new exit (range 13) 7041 | -6/Waste | Crushed by Compactor (1 part destroyed, 2 dropped) 7045 | -6/Waste | Entered Factory 7399 | -6/Factory | System corruption reached 10% 7495 | -6/Factory | Lost 3 parts (2n1u) 7500 | -6/Factory | Core integrity fell below 20% 7803 | -6/Factory | Discovered new exit (range 10) 7812 | -6/Factory | Entered another Factory area 7812 | -5/Factory | Evolved 2 slots: Utility x2 7889 | -5/Factory | Identified exit to DSF 7889 | -5/Factory | Entered DSF 7907 | -5/DSF | Additional patrols routed to DSF 7945 | -5/DSF | Discovered new exit (range 16) 7947 | -5/DSF | Lost 3 parts (1u2w) 7956 | -5/DSF | Entered Factory 7956 | -4/Factory | Evolved 2 slots: Utility x2 8039 | -4/Factory | Fabricated Grenade Launcher (x1) 8123 | -4/Factory | Discovered new exit (range 14) 8141 | -4/Factory | Entered Extension 8191 | -4/Extension | Spotted B-86 Titan 8196 | -4/Extension | Spotted B-86 Titan 8212 | -4/Extension | Core integrity fell below 50% 8218 | -4/Extension | Core integrity fell below 20% 8235 | -4/Extension | Lost 7 parts (4n2u1w) 8251 | -4/Extension | Discovered new exit (range 16) 8252 | -4/Extension | Discovered new exit (range 14) 8262 | -4/Extension | Identified exit to Research 8264 | -4/Extension | Identified exit to Cetus 8264 | -4/Extension | Entered Cetus 8271 | -4/Cetus | Spotted Cetus Guard 8271 | -4/Cetus | Spotted Cetus Guard 8272 | -4/Cetus | Spotted Cetus Guard 8286 | -4/Cetus | Discovered exit to Research (range 16) 8296 | -4/Cetus | Entered Research 8296 | -3/Research | Evolved 2 slots: Propulsion x1, Utility x1 8472 | -3/Research | Identified exit to DSF 8473 | -3/Research | Entered DSF 8495 | -3/DSF | Discovered new exit (range 15) 8503 | -3/DSF | Identified exit to Research 8503 | -3/DSF | Entered Research 8503 | -2/Research | Evolved 2 slots: Weapon x2 8583 | -2/Research | Spotted B-90 Cyclops 8649 | -2/Research | Core integrity fell below 50% 8659 | -2/Research | Core integrity fell below 20% 8665 | -2/Research | Destroyed by Y-72 Warden with Quantum Rifle Last Messages --------------- dispatching Cutter reinforcements to area. 08641_ Knocked back. 08641_ C-57 Dissector knocked back. 08642_ Knocked back. 08642_ P-80 Master knocked back. 08642_ Knocked back. 08643_ Adv. Targeting Computer severed. 08644_ The unstable cave ceiling collapses. 08644_ Adv. Signal Interpreter severed. 08646_ Penetrated by Slug. 08651_ Slug penetrates Wall. 08656_ P-80 Master resets C-57 Dissector, system corruption cleaned. 08658_ Slug penetrates Wall. 08659_ B-90 Cyclops activates siege mode. 08662_ Penetrated by Slug. 08662_ Slug penetrates Wall. 08663_ U-05 Engineer builds a Wall. 08664_ W-44 Eye sends out distress signal. 08664_ U-05 Engineer builds a Wall. Map ----- +----------------------------------------------------+ | ???????????????????????????????????########??????? | | ???????????????????????????????????? #??????? | | ???????????????????????????????????? #??????? | | ????????????????????????????????????? ???????? | | ????????????????????????????????????? ] ???????? | | ????????????????###########??????????? ???????## | | ????????????????# #######????? ?????? | | ????????????????# # #######+######? | | ????????????????# """ # # | | ????????????????# """ / # | | ????????????????# """ # + | | ????????????????# # """ """" # | | ?????????#? ??# # """ "F" ##### | | ?????????# ?+ # """ #? | | ?????????# ?##+##+##+## # | | ?????????# ??# ## # | | ??????????# #??# ## + | | ??????????# #### "###### # | | ??????????+ #" #?# ##### # | | ??????????# ## ### ##### #? | | ??????????# ## ######? | | ??????????# ## #??????? | | ??????????# ## #??????? | | ??????????# """"" !! #+##?# #??????? | | ??????????# ""T"" ! #????# #??????? | | ??????????# @ #????# #??????? | | ########### #????# #??????? | | g gkm w A u c #????# #??????? | | ########### ###u c #????# #??????# | | ???##########+## #?# k #????# #???? # | | ???# ! #########c#c #????# #?? # | | ???# #??# " ###### # # | | ???# #??# ] / + # | | ???# [ #??# # # # | | ???# !#??# # Y #?? # | | ???# ! #??# ## ###????### | | ???# ]#??# ## BB #????????? | | ???#############??######### hhBB ########?? | | ??????????????????????????# # #?? | | ??????????????????????????# p # #?? | | ????????????????????????? " #"#### # #?? | | ??????????????????????? ##### # # #?? | | ????????????????????? ????# / + #?? | | ??????????????????? ?????# # # #?? | | ??????????????????####+##?????# # ########## | | ??????????????????????????????# + | | ??????????????????????????????# # ###### | | ??????????????????????????????# # # | | ??????????????????????????????# # # | | ??????????????????????????????# # + | +----------------------------------------------------+ Best States ------------- Heat Dissipation 56 Energy Generation 21 Energy Capacity 900 Matter Stores 300 Matter Capacity 300 Sight Range 16 Terrain Scan Density 10 ECM Strength 1 Cloak Strength 5 Armor Coverage 375 Power Shielding 33 Utility Shielding 66 Evasion (%) 63 Targeting Accuracy 8 Recoil Reduction 3 Particle Charging 20 Defensive Hacking 10 Authchip Count 1 Item Schematics ----------------- Hvy. Assault Rifle | -9/Materials | Scanalyzed Imp. Heat Sink | -9/Materials | Scanalyzed Grenade Launcher | -9/Materials | Scanalyzed Robot Schematics ------------------ None Fabricated ------------ Grenade Launcher | x1 | -4/Factory Alien Tech Used ----------------- None Achievements -------------- None Challenges ------------ None Game ------ Seed TitaniumMobileSpecial Manual? 0 Play Time 02:04:20 Cumulative 46.9 hours Start 2024.07.16 @ 17:49:33 End 2024.07.19 @ 23:40:48 Sessions 1 Manual Loads 0 Difficulty Rogue Special Mode None Game No. 70 Rogue 70 Adventurer 0 Explorer 0 Win Type - Total 0 Types 0/0/0/0/0/0/0/0/0 Lore% 27 Gallery% 30 Achievement% 32 Wizard Run 0 Options --------- Layout 1 ASCII 0 Keyboard 0 Movement Arrows Keybinds 0 Fullscreen 1 Font 24/Crisp Map View 50x40 Zoom Use 0% Tactical HUD 1 Map Filters NONE Filters NONE Steam 1 RUN: 31029e89-554b-498a-a75f-5fd48678c512